fUST/lending_fUST_20251021
["ID","MTS","AMOUNT","RATE_DAILY","PERIOD"]
[391915120,1760982632257,-1414.82192607,0.00024755,2]
[391915122,1760982632267,-1414.82192607,0.00025198,2]
[391915124,1760982632277,-259.51336646,0.00025341,2]
[391915126,1760982632287,-875.85653025,0.00025372,2]
[391915129,1760982632313,-538.96539582,0.00025372,2]
[391915131,1760982632324,-1414.82192607,0.00025543,2]
[391915133,1760982632337,-500.0,0.00025611,2]
[391915135,1760982632347,-300.0,0.00025611,2]
[391915137,1760982632356,-446.0,0.00025611,2]
[391915139,1760982632365,-8068.5997693,0.00025612,30]
[391915142,1760982632378,-10089.1614643,0.00025612,30]
[391915144,1760982632388,-160.0,0.00025612,30]
[391915146,1760982632397,-1414.82192607,0.00025853,2]
[391915148,1760982632408,-155.0,0.00025863,18]
[391915150,1760982632418,-289.45721644,0.00025941,2]
[391915153,1760982632427,-991.434054,0.00026,2]
[391915155,1760982632437,-801.38937387,0.00026023,2]
[391915157,1760982632446,-300.0,0.00026123,30]
[391915159,1760982632455,-300.0,0.00026123,30]
[391915161,1760982632465,-300.0,0.00026123,30]
[391915163,1760982632475,-300.0,0.00026123,30]
[391915165,1760982632484,-300.0,0.00026123,30]
[391915167,1760982632494,-300.0,0.00026123,30]
[391915169,1760982632506,-300.0,0.00026123,30]
[391915171,1760982632516,-300.0,0.00026123,30]
[391915173,1760982632525,-300.0,0.00026123,30]
[391915175,1760982632535,-300.0,0.00026123,30]
[391915177,1760982632544,-300.0,0.00026123,30]
[391915179,1760982632554,-300.0,0.00026123,30]
[391915181,1760982632564,-300.0,0.00026123,30]
[391915183,1760982632574,-300.0,0.00026123,30]
[391915185,1760982632583,-300.0,0.00026123,30]
[391915187,1760982632595,-1414.82192607,0.00026269,2]
[391915190,1760982632604,-1321.0,0.00026313,2]
[391915191,1760982632614,-1414.82192607,0.00026499,2]
[391915194,1760982632625,-319.40106642,0.00026541,2]
[391915195,1760982632635,-600.0,0.00026644,30]
[391915197,1760982632645,-1321.0,0.00026737,2]
[391915200,1760982632655,-500.0,0.00026783,2]
[391915202,1760982632665,-4126.29405753,0.000268,2]
[391915233,1760982632955,-2207.10313486,0.000268,2]
[391915235,1760982632966,-2332.39139633,0.000268,2]
[391915237,1760982632977,-1480.25432514,0.000268,2]
[391915241,1760982633004,-495.27227972,0.000268,2]
[391915243,1760982633015,-1245.10276993,0.000268,2]
[391915245,1760982633027,-687.52744019,0.000268,2]
[391915247,1760982633038,-3827.25718664,0.000268,2]
[391915252,1760982633076,-8598.79740966,0.000268,2]
[391915254,1760982633086,-1414.82192607,0.00026832,2]
[391915256,1760982633096,-2817.86860054,0.00026851,2]
[391915258,1760982633105,-451.89,0.0002688,3]
[391915260,1760982633114,-225.95,0.0002688,3]
[391915262,1760982633123,-677.86,0.0002688,3]
[391915264,1760982633136,-31655.7219682,0.0002688,2]
[391915266,1760982633146,-5512.0818987,0.0002688,2]
[391915268,1760982633156,-500.0,0.00026889,2]
[391915270,1760982633166,-500.0,0.00026889,2]
[391915272,1760982633176,-500.0,0.00026889,2]
[391915274,1760982633185,-500.0,0.00026889,2]
[391915276,1760982633195,-500.0,0.00026889,2]
[391915279,1760982633205,-357.54719996,0.00026889,2]
[391915280,1760982633216,-92615.49257789,0.0002689,2]
[391915380,1760982638054,-195.63315318,0.00025205,2]
[391915382,1760982638065,-224.97812616,0.00025805,2]
[391915384,1760982638074,-3976.18872066,0.0002689,2]
[391915386,1760982638087,-30031.20657445,0.0002689,2]
[391915388,1760982638096,-22048.3275948,0.0002689,2]
[391915390,1760982638107,-134407.98000939,0.000269,2]
[391915392,1760982638119,-611.14832869,0.000269,2]
[391915395,1760982638139,-4066.8144864,0.000269,2]
[391915424,1760982641015,-254.32309913,0.00026405,2]
[391915425,1760982641086,-59495.67690087,0.000269,2]
[391915426,1760982641098,-324.46247205,0.000269,2]
[391915445,1760982643295,-19602.76691841,0.000269,2]
[391915462,1760982646657,-1326.50559,0.0002689,10]
[391915464,1760982708652,830.141859,0.00013699,2]
[391915465,1760982708723,830.141859,0.00020187,2]
[391915487,1760983209089,417.15472785,0.00024075,2]
[391915488,1760983226826,150.05747781,0.0001,2]
[391915489,1760983374506,150.0,0.00033707,30]
[391915490,1760983824860,907.54807736,0.00023068,10]
[391915491,1760983826635,605.06226691,0.00023299,10]
[391915529,1760983832330,-447.22273515,0.00024277,2]
[391915531,1760983832339,-500.0,0.00024281,10]
[391915533,1760983832349,-500.0,0.00024281,10]
[391915535,1760983832358,-500.0,0.00024281,10]
[391915537,1760983832368,-500.0,0.00024281,10]
[391915538,1760983832377,-500.0,0.00024281,10]
[391915540,1760983832386,-300.0,0.00024358,2]
[391915542,1760983832396,-4655.37726485,0.00024568,2]
[391915544,1760983832416,-563.60905639,0.00024568,2]
[391915546,1760983832429,-14843.68493266,0.00024568,2]
[391915548,1760983832439,-195.808452,0.00024647,2]
[391915550,1760983832448,-165.87564229,0.00024842,2]
[391915552,1760983832457,-300.0,0.00025389,20]
[391915553,1760983832466,-300.0,0.00025389,20]
[391915555,1760983832476,-300.0,0.00025389,20]
[391915556,1760983832485,-300.0,0.00025389,20]
[391915557,1760983832494,-300.0,0.00025389,20]
[391915558,1760983832504,-300.0,0.00025389,20]
[391915559,1760983832513,-300.0,0.00025389,20]
[391915560,1760983832523,-300.0,0.00025389,20]
[391915561,1760983832532,-300.0,0.00025389,20]
[391915562,1760983832541,-300.0,0.00025389,20]
[391915563,1760983832550,-300.0,0.00025389,20]
[391915564,1760983832560,-300.0,0.00025389,20]
[391915565,1760983832569,-300.0,0.00025389,20]
[391915566,1760983832579,-300.0,0.00025389,20]
[391915567,1760983832588,-300.0,0.00025389,20]
[391915568,1760983832597,-190.75698864,0.00025442,2]
[391915569,1760983832607,-986.82403066,0.00025555,2]
[391915570,1760983832616,-666.0,0.00025586,2]
[391915571,1760983832625,-680.4824558,0.00025791,2]
[391915572,1760983832635,-600.0,0.00025896,20]
[391915573,1760983832644,-49148.32654464,0.0002599,2]
[391915574,1760983832655,-737.38841455,0.0002599,2]
[391915575,1760983832667,-4532.01696288,0.0002599,2]
[391915576,1760983832676,-215.63833498,0.00026042,2]
[391915577,1760983832686,-420.0,0.00026405,2]
[391915578,1760983832695,-240.51968133,0.00026642,2]
[391915579,1760983832705,-339.0,0.00026664,2]
[391915580,1760983832714,-830.141859,0.00026676,2]
[391915581,1760983832723,-58637.58069515,0.00026705,2]
[391915582,1760983832732,-213.82088284,0.00026707,2]
[391915583,1760983832741,-1378.02047467,0.00026747,2]
[391915584,1760983832751,-1378.02047467,0.00026757,2]
[391915585,1760983832760,-225.94,0.00026767,3]
[391915586,1760983832769,-677.86,0.00026767,3]
[391915587,1760983832778,-500.0,0.00026773,2]
[391915588,1760983832788,-500.0,0.00026773,2]
[391915589,1760983832798,-2254.2948804,0.00026773,2]
[391915590,1760983832807,-2756.04094934,0.0002678,2]
[391915591,1760983832816,-11024.1637974,0.0002679,2]
[391915592,1760983832826,-39904.04477062,0.000268,2]
[391915606,1760983838208,-471.80871825,0.00026707,2]
[391915608,1760983838219,-330095.95522938,0.000268,2]
[391915610,1760983838230,-2254.2948804,0.00026805,2]
[391915612,1760983838239,-310.0,0.00026805,2]
[391915614,1760983838249,-160.0,0.00026813,2]
[391915616,1760983838258,-2254.2948804,0.00026837,2]
[391915618,1760983838267,-500.0,0.00026868,2]
[391915620,1760983838277,-2254.2948804,0.00026868,2]
[391915622,1760983838288,-1378.02047467,0.00026869,2]
[391915624,1760983838298,-150.0,0.00026873,2]
[391915626,1760983838307,-150.0,0.00026873,2]
[391915627,1760983838317,-9687.6211721,0.00026877,2]
[391915630,1760983838326,-1458.8188567,0.00026877,2]
[391915632,1760983838336,-20490.5406467,0.00026877,2]
[391915634,1760983838346,-1378.02047467,0.0002688,2]
[391915636,1760983838355,-280.73819981,0.00026889,7]
[391915638,1760983838364,-2254.2948804,0.000269,2]
[391915640,1760983838374,-7967.69606133,0.000269,2]
[391915642,1760983838384,-151.0,0.00026965,7]
[391915644,1760983838394,-5512.08189868,0.0002697,2]
[391915646,1760983838404,-1378.02047467,0.0002697,2]
[391915648,1760983838414,-992.16563957,0.00026972,2]
[391915650,1760983838424,-1763.85002591,0.00026972,2]
[391915652,1760983838434,-2756.01566548,0.00026972,2]
[391915654,1760983838443,-315.36508443,0.00026972,2]
[391915656,1760983838452,-500.0,0.00026973,2]
[391915658,1760983838461,-150.0,0.00026973,2]
[391915660,1760983838471,-151.0,0.0002698,7]
[391915662,1760983838481,-151.0,0.0002698,2]
[391915664,1760983838490,-151.0,0.0002698,2]
[391915666,1760983838499,-151.0,0.0002698,7]
[391915668,1760983838508,-151.0,0.0002698,2]
[391915670,1760983838517,-151.0,0.0002698,7]
[391915672,1760983838527,-151.0,0.0002698,2]
[391915674,1760983838536,-151.0,0.0002698,7]
[391915676,1760983838546,-151.0,0.0002698,7]
[391915678,1760983838555,-151.0,0.0002698,7]
[391915680,1760983838565,-151.0,0.0002698,7]
[391915682,1760983838575,-151.0,0.0002698,7]
[391915684,1760983838584,-151.0,0.0002698,7]
[391915686,1760983838593,-231.135208,0.0002698,7]
[391915688,1760983838603,-327.96264,0.0002698,7]
[391915690,1760983838612,-231.135208,0.0002698,7]
[391915692,1760983838621,-327.96264,0.0002698,7]
[391915694,1760983838630,-231.135208,0.0002698,7]
[391915696,1760983838640,-327.96264,0.0002698,7]
[391915698,1760983838649,-233.656997,0.0002698,7]
[391915699,1760983838658,-327.96264,0.0002698,7]
[391915701,1760983838667,-231.135208,0.0002698,7]
[391915703,1760983838676,-233.656997,0.0002698,7]
[391915705,1760983838686,-233.656997,0.0002698,7]
[391915707,1760983838695,-233.656997,0.0002698,7]
[391915709,1760983838705,-151.0,0.0002698,7]
[391915711,1760983838714,-235.1944,0.0002698,7]
[391915713,1760983838724,-151.0,0.0002698,7]
[391915715,1760983838734,-153.581276,0.0002698,7]
[391915716,1760983838743,-151.0,0.0002698,7]
[391915717,1760983838752,-151.0,0.0002698,7]
[391915719,1760983838762,-1304.693153,0.0002698,7]
[391915720,1760983838771,-151.0,0.0002698,7]
[391915722,1760983838781,-151.0,0.0002698,7]
[391915724,1760983838791,-1304.693153,0.0002698,7]
[391915725,1760983838800,-151.0,0.0002698,7]
[391915727,1760983838810,-1304.693153,0.0002698,7]
[391915728,1760983838820,-151.0,0.0002698,7]
[391915730,1760983838829,-1304.693153,0.0002698,7]
[391915732,1760983838838,-151.0,0.0002698,7]
[391915733,1760983838848,-151.0,0.0002698,7]
[391915735,1760983838858,-151.0,0.0002698,7]
[391915737,1760983838867,-151.0,0.0002698,7]
[391915738,1760983838876,-151.0,0.0002698,7]
[391915740,1760983838885,-151.0,0.0002698,7]
[391915741,1760983838894,-160.558046,0.0002698,7]
[391915743,1760983838902,-151.0,0.0002698,7]
[391915744,1760983838909,-160.558046,0.0002698,7]
[391915745,1760983838918,-160.558046,0.0002698,7]
[391915746,1760983838927,-160.558046,0.0002698,7]
[391915747,1760983838936,-158.998876,0.0002698,7]
[391915748,1760983838945,-158.998876,0.0002698,7]
[391915749,1760983838955,-158.998876,0.0002698,7]
[391915750,1760983838965,-158.998876,0.0002698,7]
[391915751,1760983838975,-627.756314,0.0002698,7]
[391915752,1760983838985,-152.094476,0.0002698,7]
[391915753,1760983838997,-627.756314,0.0002698,7]
[391915754,1760983839007,-627.756314,0.0002698,7]
[391915755,1760983839017,-627.756314,0.0002698,7]
[391915756,1760983839027,-151.0,0.0002698,7]
[391915757,1760983839038,-152.517226,0.0002698,7]
[391915758,1760983839048,-161.844852,0.0002698,7]
[391915759,1760983839058,-161.844852,0.0002698,7]
[391915760,1760983839071,-2093.909171,0.0002698,7]
[391915761,1760983839082,-2093.909171,0.0002698,7]
[391915762,1760983839094,-161.844852,0.0002698,7]
[391915763,1760983839104,-161.844852,0.0002698,7]
[391915764,1760983839114,-151.0,0.0002698,7]
[391915765,1760983839124,-2093.909171,0.0002698,7]
[391915766,1760983839134,-2093.909171,0.0002698,7]
[391915767,1760983839144,-161.844852,0.0002698,7]
[391915768,1760983839154,-654.203764,0.0002698,7]
[391915769,1760983839163,-161.844852,0.0002698,7]
[391915770,1760983839173,-654.203764,0.0002698,7]
[391915771,1760983839183,-2093.909171,0.0002698,7]
[391915772,1760983839193,-2093.909171,0.0002698,7]
[391915773,1760983839202,-654.203764,0.0002698,7]
[391915774,1760983839212,-161.844852,0.0002698,7]
[391915775,1760983839222,-654.203764,0.0002698,7]
[391915776,1760983839232,-161.844852,0.0002698,7]
[391915777,1760983839242,-2093.909171,0.0002698,7]
[391915778,1760983839252,-2093.909171,0.0002698,7]
[391915779,1760983839262,-151.0,0.0002698,7]
[391915780,1760983839272,-654.203764,0.0002698,7]
[391915781,1760983839281,-152.761404,0.0002698,7]
[391915782,1760983839291,-654.203764,0.0002698,7]
[391915783,1760983839301,-654.203764,0.0002698,7]
[391915784,1760983839310,-654.203764,0.0002698,7]
[391915785,1760983839320,-1823.142174,0.0002698,7]
[391915786,1760983839330,-1823.142174,0.0002698,7]
[391915787,1760983839340,-1823.142174,0.0002698,7]
[391915788,1760983839351,-151.0,0.0002698,7]
[391915789,1760983839360,-1823.142174,0.0002698,7]
[391915790,1760983839370,-151.0,0.0002698,7]
[391915791,1760983839380,-151.0,0.0002698,7]
[391915792,1760983839389,-1823.142174,0.0002698,7]
[391915794,1760983839399,-165.046059,0.0002698,7]
[391915795,1760983839408,-1823.142174,0.0002698,7]
[391915796,1760983839417,-1823.142174,0.0002698,7]
[391915797,1760983839426,-1823.142174,0.0002698,7]
[391915798,1760983839435,-151.0,0.0002698,7]
[391915799,1760983839444,-151.0,0.0002698,7]
[391915800,1760983839454,-151.0,0.0002698,7]
[391915801,1760983839462,-151.0,0.0002698,7]
[391915802,1760983839472,-151.0,0.0002698,7]
[391915803,1760983839481,-151.0,0.0002698,7]
[391915804,1760983839490,-151.0,0.0002698,7]
[391915805,1760983839499,-151.244164,0.0002698,7]
[391915806,1760983839508,-151.0,0.0002698,7]
[391915807,1760983839517,-151.0,0.0002698,7]
[391915808,1760983839526,-177.753116,0.0002698,7]
[391915809,1760983839536,-177.753116,0.0002698,7]
[391915810,1760983839546,-151.0,0.0002698,7]
[391915811,1760983839555,-151.0,0.0002698,7]
[391915812,1760983839565,-177.753116,0.0002698,7]
[391915813,1760983839574,-177.753116,0.0002698,7]
[391915814,1760983839583,-151.0,0.0002698,7]
[391915815,1760983839594,-151.0,0.0002698,7]
[391915816,1760983839603,-177.753116,0.0002698,7]
[391915817,1760983839613,-177.753116,0.0002698,7]
[391915818,1760983839622,-151.0,0.0002698,7]
[391915819,1760983839631,-151.0,0.0002698,7]
[391915820,1760983839640,-177.753116,0.0002698,7]
[391915821,1760983839649,-177.753116,0.0002698,7]
[391915822,1760983839659,-151.0,0.0002698,7]
[391915823,1760983839668,-217.242928,0.0002698,7]
[391915824,1760983839677,-151.0,0.0002698,7]
[391915825,1760983839686,-151.0,0.0002698,7]
[391915826,1760983839695,-151.0,0.0002698,7]
[391915827,1760983839704,-151.0,0.0002698,7]
[391915828,1760983839713,-193.55274955,0.0002698,7]
[391915829,1760983839722,-277.831891,0.0002698,7]
[391915830,1760983839732,-277.831891,0.0002698,7]
[391915831,1760983839741,-151.0,0.0002698,7]
[391915832,1760983839750,-151.0,0.0002698,7]
[391915833,1760983839760,-277.831891,0.0002698,7]
[391915834,1760983839769,-277.831891,0.0002698,7]
[391915835,1760983839778,-151.0,0.0002698,2]
[391915836,1760983839787,-151.0,0.0002698,2]
[391915837,1760983839796,-151.0,0.0002698,7]
[391915838,1760983839805,-151.0,0.0002698,7]
[391915839,1760983839814,-151.0,0.0002698,7]
[391915840,1760983839823,-151.0,0.0002698,7]
[391915841,1760983839832,-277.831891,0.0002698,7]
[391915842,1760983839841,-1557.202247,0.0002698,7]
[391915843,1760983839851,-277.831891,0.0002698,7]
[391915844,1760983839860,-1557.202247,0.0002698,7]
[391915845,1760983839869,-151.0,0.0002698,7]
[391915846,1760983839878,-151.0,0.0002698,7]
[391915847,1760983839888,-277.831891,0.0002698,7]
[391915849,1760983839898,-151.0,0.0002698,7]
[391915850,1760983839908,-1557.202247,0.0002698,7]
[391915851,1760983839917,-277.831891,0.0002698,7]
[391915852,1760983839927,-1557.202247,0.0002698,7]
[391915853,1760983839937,-151.0,0.0002698,7]
[391915854,1760983839946,-151.0,0.0002698,7]
[391915856,1760983839956,-1557.202247,0.0002698,7]
[391915858,1760983839965,-1557.202247,0.0002698,7]
[391915860,1760983839975,-151.0,0.0002698,7]
[391915862,1760983839985,-151.0,0.0002698,7]
[391915864,1760983839997,-151.0,0.0002698,7]
[391915866,1760983840006,-1557.202247,0.0002698,7]
[391915867,1760983840016,-151.0,0.0002698,7]
[391915868,1760983840026,-1557.202247,0.0002698,7]
[391915869,1760983840036,-151.0,0.0002698,7]
[391915870,1760983840046,-151.0,0.0002698,7]
[391915871,1760983840057,-151.0,0.0002698,7]
[391915872,1760983840067,-151.0,0.0002698,7]
[391915873,1760983840076,-151.0,0.0002698,7]
[391915874,1760983840085,-151.0,0.0002698,7]
[391915875,1760983840095,-151.0,0.0002698,7]
[391915876,1760983840104,-151.0,0.0002698,7]
[391915877,1760983840114,-151.0,0.0002698,7]
[391915878,1760983840123,-151.0,0.0002698,7]
[391915879,1760983840132,-151.0,0.0002698,7]
[391915880,1760983840142,-287.026693,0.0002698,7]
[391915881,1760983840151,-370.346706,0.0002698,7]
[391915882,1760983840161,-370.346706,0.0002698,7]
[391915884,1760983840170,-370.346706,0.0002698,7]
[391915886,1760983840180,-370.346706,0.0002698,7]
[391915887,1760983840189,-370.346706,0.0002698,7]
[391915889,1760983840199,-370.346706,0.0002698,7]
[391915891,1760983840208,-370.346706,0.0002698,7]
[391915893,1760983840217,-370.346706,0.0002698,7]
[391915895,1760983840227,-509.356734,0.0002698,7]
[391915897,1760983840237,-509.356734,0.0002698,7]
[391915899,1760983840246,-509.356734,0.0002698,7]
[391915901,1760983840256,-509.356734,0.0002698,7]
[391915902,1760983840265,-509.356734,0.0002698,7]
[391915903,1760983840274,-509.356734,0.0002698,7]
[391915904,1760983840283,-509.356734,0.0002698,7]
[391915905,1760983840293,-509.356734,0.0002698,7]
[391915906,1760983840303,-151.0,0.0002698,7]
[391915907,1760983840312,-151.0,0.0002698,7]
[391915908,1760983840322,-1521.602699,0.0002698,7]
[391915909,1760983840331,-151.0,0.0002698,7]
[391915910,1760983840341,-1521.602699,0.0002698,7]
[391915911,1760983840351,-151.0,0.0002698,7]
[391915912,1760983840360,-151.0,0.0002698,7]
[391915914,1760983840369,-1521.602699,0.0002698,7]
[391915916,1760983840379,-1521.602699,0.0002698,7]
[391915918,1760983840388,-151.0,0.0002698,7]
[391915920,1760983840398,-1521.602699,0.0002698,7]
[391915922,1760983840407,-151.0,0.0002698,7]
[391915924,1760983840417,-1521.602699,0.0002698,7]
[391915927,1760983840427,-151.0,0.0002698,7]
[391915929,1760983840437,-1521.602699,0.0002698,7]
[391915930,1760983840446,-276.228048,0.0002698,7]
[391915932,1760983840455,-1521.602699,0.0002698,7]
[391915934,1760983840465,-151.0,0.0002698,7]
[391915936,1760983840474,-151.0,0.0002698,7]
[391915938,1760983840484,-279.302692,0.0002698,7]
[391915941,1760983840493,-279.302692,0.0002698,7]
[391915942,1760983840502,-151.0,0.0002698,7]
[391915945,1760983840513,-151.0,0.0002698,7]
[391915946,1760983840523,-151.0,0.0002698,7]
[391915949,1760983840533,-151.0,0.0002698,7]
[391915952,1760983840543,-279.302692,0.0002698,7]
[391915955,1760983840553,-279.302692,0.0002698,7]
[391915956,1760983840562,-151.0,0.0002698,7]
[391915959,1760983840571,-151.0,0.0002698,7]
[391915961,1760983840580,-279.302692,0.0002698,7]
[391915962,1760983840590,-279.302692,0.0002698,7]
[391915965,1760983840600,-279.302692,0.0002698,7]
[391915967,1760983840609,-279.302692,0.0002698,7]
[391915969,1760983840619,-151.0,0.0002698,7]
[391915971,1760983840629,-151.0,0.0002698,7]
[391915973,1760983840638,-151.0,0.0002698,7]
[391915975,1760983840647,-151.0,0.0002698,7]
[391915977,1760983840657,-10000.0,0.0002698,7]
[391915979,1760983840666,-10000.0,0.0002698,7]
[391915981,1760983840675,-10000.0,0.0002698,7]
[391915983,1760983840684,-10000.0,0.0002698,7]
[391915985,1760983840694,-10000.0,0.0002698,7]
[391915987,1760983840703,-10000.0,0.0002698,7]
[391915989,1760983840715,-10000.0,0.0002698,7]
[391915991,1760983840725,-10000.0,0.0002698,7]
[391915993,1760983840734,-10000.0,0.0002698,7]
[391915995,1760983840744,-10000.0,0.0002698,7]
[391915997,1760983840753,-10000.0,0.0002698,7]
[391915999,1760983840762,-10000.0,0.0002698,7]
[391916001,1760983840772,-10000.0,0.0002698,7]
[391916003,1760983840782,-10000.0,0.0002698,7]
[391916005,1760983840791,-10000.0,0.0002698,7]
[391916007,1760983840801,-10000.0,0.0002698,7]
[391916009,1760983840812,-10000.0,0.0002698,7]
[391916011,1760983840821,-10000.0,0.0002698,7]
[391916013,1760983840830,-10000.0,0.0002698,7]
[391916015,1760983840840,-10000.0,0.0002698,7]
[391916017,1760983840849,-10000.0,0.0002698,7]
[391916019,1760983840858,-10000.0,0.0002698,7]
[391916021,1760983840867,-10000.0,0.0002698,7]
[391916023,1760983840877,-10000.0,0.0002698,7]
[391916025,1760983840886,-10000.0,0.0002698,7]
[391916027,1760983840895,-10000.0,0.0002698,7]
[391916029,1760983840905,-1378.511232,0.0002698,7]
[391916031,1760983840914,-1378.511232,0.0002698,7]
[391916033,1760983840923,-10000.0,0.0002698,7]
[391916035,1760983840932,-10000.0,0.0002698,7]
[391916037,1760983840942,-1378.511232,0.0002698,7]
[391916039,1760983840951,-250.06454488,0.0002698,7]
[391916041,1760983840960,-1378.511232,0.0002698,7]
[391916043,1760983840969,-286.876082,0.0002698,7]
[391916045,1760983840978,-295.593934,0.0002698,7]
[391916047,1760983840990,-286.876082,0.0002698,7]
[391916049,1760983841000,-295.593934,0.0002698,7]
[391916051,1760983841009,-1378.511232,0.0002698,7]
[391916053,1760983841018,-1378.511232,0.0002698,7]
[391916055,1760983841028,-211.958132,0.0002698,7]
[391916057,1760983841038,-211.958132,0.0002698,7]
[391916059,1760983841047,-286.876082,0.0002698,7]
[391916061,1760983841057,-295.593934,0.0002698,7]
[391916063,1760983841068,-286.876082,0.0002698,7]
[391916065,1760983841077,-1378.511232,0.0002698,7]
[391916067,1760983841086,-295.593934,0.0002698,7]
[391916069,1760983841094,-1378.511232,0.0002698,7]
[391916071,1760983841104,-211.958132,0.0002698,7]
[391916073,1760983841113,-286.876082,0.0002698,7]
[391916075,1760983841122,-211.958132,0.0002698,7]
[391916077,1760983841131,-286.876082,0.0002698,7]
[391916079,1760983841139,-295.593934,0.0002698,7]
[391916081,1760983841149,-211.958132,0.0002698,7]
[391916083,1760983841158,-211.958132,0.0002698,7]
[391916085,1760983841167,-286.876082,0.0002698,7]
[391916087,1760983841176,-295.593934,0.0002698,7]
[391916089,1760983841185,-286.876082,0.0002698,7]
[391916091,1760983841194,-211.958132,0.0002698,7]
[391916093,1760983841203,-211.958132,0.0002698,7]
[391916095,1760983841213,-295.593934,0.0002698,7]
[391916097,1760983841222,-295.593934,0.0002698,7]
[391916098,1760983841231,-183.026705,0.0002698,7]
[391916100,1760983841240,-151.0,0.0002698,2]
[391916102,1760983841250,-198.306705,0.0002698,2]
[391916104,1760983841259,-151.0,0.0002698,7]
[391916124,1760983841439,-151.0,0.0002698,7]
[391916126,1760983841449,-151.0,0.0002698,7]
[391916128,1760983841458,-151.0,0.0002698,7]
[391916130,1760983841468,-151.0,0.0002698,7]
[391916132,1760983841476,-151.0,0.0002698,7]
[391916135,1760983841486,-151.0,0.0002698,7]
[391916137,1760983841496,-151.0,0.0002698,7]
[391916139,1760983841506,-151.0,0.0002698,7]
[391916141,1760983841516,-151.0,0.0002698,7]
[391916143,1760983841525,-151.0,0.0002698,7]
[391916145,1760983841534,-151.0,0.0002698,7]
[391916147,1760983841543,-151.0,0.0002698,7]
[391916149,1760983841553,-1378.02047467,0.0002698,2]
[391916151,1760983841563,-151.0,0.0002699,7]
[391916153,1760983841573,-151.0,0.0002699,7]
[391916155,1760983841582,-157.146065,0.0002699,7]
[391916157,1760983841591,-200.400339,0.0002699,7]
[391916158,1760983841602,-200.400339,0.0002699,7]
[391916160,1760983841611,-200.400339,0.0002699,7]
[391916162,1760983841621,-200.400339,0.0002699,7]
[391916164,1760983841630,-535.194147,0.0002699,7]
[391916166,1760983841640,-160.38176,0.0002699,7]
[391916168,1760983841650,-535.194147,0.0002699,7]
[391916171,1760983841660,-160.38176,0.0002699,7]
[391916173,1760983841670,-160.38176,0.0002699,7]
[391916175,1760983841679,-535.194147,0.0002699,7]
[391916176,1760983841689,-160.38176,0.0002699,7]
[391916179,1760983841698,-535.194147,0.0002699,7]
[391916181,1760983841708,-151.0,0.0002699,7]
[391916183,1760983841716,-151.0,0.0002699,7]
[391916184,1760983841725,-192.259718,0.0002699,7]
[391916186,1760983841735,-192.259718,0.0002699,7]
[391916188,1760983841745,-192.259718,0.0002699,7]
[391916190,1760983841754,-192.259718,0.0002699,7]
[391916192,1760983841764,-204.294519,0.0002699,7]
[391916194,1760983841773,-204.294519,0.0002699,7]
[391916196,1760983841782,-204.294519,0.0002699,7]
[391916198,1760983841792,-204.294519,0.0002699,7]
[391916200,1760983841802,-179.296642,0.0002699,7]
[391916202,1760983841811,-179.296642,0.0002699,7]
[391916204,1760983841820,-204.294519,0.0002699,7]
[391916206,1760983841830,-204.294519,0.0002699,7]
[391916208,1760983841839,-204.294519,0.0002699,7]
[391916210,1760983841849,-179.296642,0.0002699,7]
[391916212,1760983841859,-204.294519,0.0002699,7]